bitfinex-derivatives/quotes_ETHF0:USTF0_20250110
["timestamp","ask_amount","ask_price","bid_price","bid_amount"]
[1736472057043,2.44678762,3219.9,3219.6,0.4444]
[1736472057244,0.31059,3219.8,3219.4,3.6779]
[1736472057538,0.4377,3220.0,3219.0,4.83184712]
[1736472057539,0.31064,3219.3,3219.0,4.83184712]
[1736472057739,0.4536,3219.2,3219.0,4.83184712]
[1736472058944,0.4536,3219.2,3218.9,0.31068]
[1736472059139,2.44678762,3219.3,3218.5,4.1235]
[1736472059340,3.2078,3219.6,3218.9,3.2078]
[1736472059538,5.65458762,3219.6,3219.0,0.4625]
[1736472059738,5.65458762,3219.6,3219.2,0.31064]
[1736472060443,2.90038762,3219.9,3219.5,0.31061]
[1736472061045,2.90038762,3219.9,3219.4,0.9138]
[1736472061240,0.3106,3219.8,3219.4,0.9138]
[1736472061542,2.90038762,3219.9,3219.4,1.22443]
[1736472061543,3.21097762,3219.9,3219.4,1.22443]
[1736472061934,0.3106,3219.7,3219.3,44.0078]
[1736472062140,2.75740762,3219.6,3219.3,40.8]
[1736472062342,2.75740762,3219.6,3219.0,0.4625]
[1736472062343,2.44678762,3219.6,3219.0,0.4625]
[1736472062646,2.44678762,3219.6,3219.1,0.31065]
[1736472063046,2.90038762,3219.9,3219.0,41.2625]
[1736472063247,2.90038762,3219.9,3219.5,0.31061]
[1736472064543,3.2078,3220.2,3219.7,3.2078]
[1736472064747,3.2078,3220.2,3220.1,0.31056]
[1736472064952,0.4407,3220.7,3220.4,0.31052]
[1736472065147,0.4407,3220.7,3220.1,3.2078]
[1736472065148,0.4407,3220.7,3220.2,0.9191]
[1736472065450,5.65458762,3221.1,3220.5,3.2078]
[1736472065651,3.2078,3221.1,3221.0,0.31047]
[1736472065853,0.42101249,3221.5,3221.0,3.2078]
[1736472066048,0.89981249,3221.8,3221.3,0.31044]
[1736472066245,0.89981249,3221.8,3220.7,2.44678762]
[1736472066246,0.42101249,3221.8,3221.5,0.31042]
[1736472066853,0.42101249,3221.8,3221.4,3.51823]
[1736472067045,2.89728762,3222.0,3221.4,3.51823]
[1736472067348,0.4505,3222.0,3221.4,3.2078]
[1736472067552,0.76088,3222.0,3221.4,3.51823]
[1736472068044,0.4505,3222.0,3221.4,3.51823]
[1736472068246,0.31039,3221.9,3221.4,3.51823]
[1736472069558,0.4505,3222.0,3221.4,3.2078]
[1736472069854,0.31039,3221.9,3221.4,3.51823]
[1736472070649,0.4505,3222.0,3221.4,3.51823]
[1736472070854,0.76088,3222.0,3221.4,3.51823]
[1736472071749,0.31039,3221.9,3221.4,3.51823]
[1736472071949,0.76088,3222.0,3221.5,0.31043]
[1736472072447,3.2078,3222.1,3221.4,3.2078]
[1736472072646,3.2078,3222.5,3221.8,3.2078]
[1736472072843,0.4636,3222.7,3222.3,3.51814]
[1736472073540,0.77391,3222.7,3222.3,3.2078]
[1736472073947,0.4636,3222.7,3222.3,3.2078]
[1736472074544,0.4636,3222.7,3222.4,0.31034]
[1736472074963,0.77392,3222.7,3222.3,3.2078]
[1736472075149,0.31032,3222.6,3222.3,3.2078]
[1736472075647,0.31034,3222.4,3222.3,3.2078]
[1736472075852,0.31037,3222.1,3221.9,3.2078]
[1736472076147,0.4418,3222.5,3221.9,3.2078]
[1736472076553,0.31033,3222.6,3222.0,0.31038]
[1736472076949,2.15091,3222.7,3222.1,0.31037]
[1736472077256,2.15091,3222.7,3221.9,3.2078]
[1736472077455,2.15091,3222.7,3222.0,0.31037]
[1736472077655,1.8406,3222.7,3222.0,0.31037]
[1736472077848,0.31033,3222.6,3222.0,0.31037]
[1736472078756,1.8406,3222.7,3221.9,3.2078]
[1736472078955,1.8406,3222.7,3222.1,0.31037]
[1736472078956,2.15092,3222.7,3222.1,0.31037]
[1736472079354,0.31032,3222.6,3222.0,0.4379]
[1736472079659,0.31034,3222.5,3222.0,0.4379]
[1736472080158,0.31032,3222.6,3222.1,0.31037]
[1736472080758,6.1188,3223.1,3222.3,3.2078]
[1736472081153,3.2078,3223.1,3222.3,3.2078]
[1736472081452,0.463,3223.3,3222.7,3.2078]
[1736472081657,0.463,3223.3,3222.8,40.8]
[1736472081859,0.463,3223.3,3222.8,41.6767]
[1736472082157,0.463,3223.3,3223.0,0.31028]
[1736472082357,0.463,3223.3,3222.8,41.6767]
[1736472082559,0.463,3223.3,3222.9,0.31029]
[1736472082950,0.463,3223.3,3223.0,0.31028]
[1736472083151,3.2078,3223.9,3223.1,3.2078]
[1736472083355,0.4468,3224.1,3223.7,0.31021]
[1736472084058,0.4468,3224.1,3223.5,3.2078]
[1736472084262,0.31022,3223.7,3223.5,3.2078]
[1736472084455,3.6546,3224.1,3223.5,3.2078]
[1736472084757,0.31021,3223.8,3223.5,3.2078]
[1736472085158,3.6546,3224.1,3223.7,0.31021]
[1736472085159,0.4468,3224.1,3223.7,0.31021]
[1736472085553,0.4716,3224.2,3223.7,0.31021]
[1736472085754,0.78177,3224.2,3223.7,0.31021]
[1736472086353,0.78177,3224.2,3223.6,0.4559]
[1736472086354,0.4716,3224.2,3223.6,0.4559]
[1736472086553,0.31015,3224.4,3223.8,0.3102]
[1736472086758,0.31017,3224.2,3223.6,0.9002]
[1736472086964,0.31017,3224.2,3223.9,3.2078]
[1736472087763,0.31018,3224.1,3223.9,3.2078]
[1736472087962,0.31017,3224.2,3223.9,3.2078]
[1736472088165,4.1083,3224.5,3223.9,3.2078]
[1736472088661,3.5179,3224.9,3224.4,3.51794]
[1736472088853,3.2078,3224.9,3224.4,3.2078]
[1736472089056,3.2078,3224.9,3224.5,41.11014]
[1736472090052,3.2078,3224.9,3224.5,40.8]
[1736472090259,0.31011,3224.8,3224.4,3.2078]
[1736472090460,3.2078,3224.9,3224.4,3.2078]
[1736472090761,0.31012,3224.7,3224.4,3.2078]
[1736472091366,3.2078,3224.9,3224.4,3.2078]
[1736472091568,3.5179,3224.9,3224.4,3.2078]
[1736472091767,3.5179,3224.9,3224.4,44.0078]
[1736472092266,3.2078,3224.9,3224.4,3.2078]
[1736472092570,0.31011,3224.8,3223.9,3.51799]
[1736472092764,0.31015,3224.4,3223.9,3.51799]
[1736472092964,0.31015,3224.4,3223.9,3.2078]
[1736472093165,2.96191877,3224.6,3223.9,3.2078]
[1736472093373,0.4458,3224.3,3223.9,3.2078]
[1736472093570,0.31017,3224.2,3223.9,3.2078]
[1736472094566,0.4458,3224.3,3223.9,3.2078]
[1736472094774,0.31018,3224.0,3223.9,3.2078]
[1736472095168,0.4458,3224.3,3223.5,3.2078]
[1736472095373,0.31017,3224.2,3223.6,0.31021]
[1736472095670,0.31019,3224.0,3223.5,3.51803]
[1736472095870,0.31019,3224.0,3223.5,3.51802]
[1736472096364,0.4458,3224.3,3223.5,3.2078]
[1736472096767,0.31019,3224.0,3223.5,3.51803]
[1736472097471,0.3102,3223.9,3223.5,3.51803]
[1736472099174,0.31021,3223.8,3223.5,3.51803]
[1736472099373,2.88646967,3224.3,3223.5,3.2078]
[1736472099873,2.44066967,3223.7,3223.1,3.2078]
[1736472100074,0.31026,3223.3,3222.9,41.11029]
[1736472100274,0.31026,3223.3,3222.9,0.31029]
[1736472101076,2.44066967,3223.4,3222.8,40.8]
[1736472101278,0.31027,3223.2,3222.8,41.11029]
[1736472101472,0.3103,3222.8,3222.7,3.2078]
[1736472101877,0.3104,3221.8,3221.2,3.2078]
[1736472102076,0.3104,3221.8,3221.0,4.83184712]
[1736472102077,6.47783278,3221.8,3221.0,4.83184712]
[1736472102375,6.16743278,3222.2,3221.1,3.2078]
[1736472102583,1.69131,3222.8,3222.2,0.31035]
[1736472102777,2.95963278,3222.6,3221.8,0.9178]
[1736472102977,0.31036,3222.3,3221.8,0.9178]
[1736472103474,0.31036,3222.3,3221.8,1.2282]
[1736472103674,0.31034,3222.4,3221.8,4.436]
[1736472103875,3.2078,3222.5,3221.8,4.1256]
[1736472104180,0.31034,3222.4,3221.8,4.43599]
[1736472104479,3.51813,3222.5,3222.0,0.31038]
[1736472104673,3.51813,3222.5,3221.9,0.31038]
[1736472104869,3.2078,3222.5,3221.8,4.1256]
[1736472105271,0.31036,3222.3,3221.8,4.1256]
[1736472105471,2.95963278,3222.4,3221.8,4.1256]
[1736472105677,2.95963278,3222.4,3221.7,0.00096048]
[1736472105980,0.31038,3222.0,3221.7,0.00096048]
[1736472106177,0.3104,3221.8,3221.7,0.00096048]
[1736472107981,5.3104,3221.8,3221.7,0.00096048]
[1736472108276,0.31041,3221.7,3220.8,40.8]
[1736472108477,0.31049,3220.9,3220.6,3.2078]
[1736472108780,3.51828,3221.0,3220.4,0.78603]
[1736472108977,3.2078,3221.0,3220.4,0.4755]
[1736472109178,3.51828,3221.0,3220.4,0.78603]
[1736472109573,3.2078,3220.5,3219.7,3.2078]
[1736472109879,2.911,3220.9,3219.3,4.83184712]
[1736472109880,2.95963278,3220.2,3219.3,4.83184712]
[1736472110080,2.95963278,3220.2,3219.6,0.31061]
[1736472110282,3.27019278,3220.2,3219.4,0.31062]
[1736472110477,2.95963278,3220.2,3219.4,0.31062]
[1736472110679,0.31056,3220.1,3219.5,40.8]
[1736472110886,3.27018278,3220.2,3219.5,41.11062]
[1736472111181,2.95963278,3220.2,3219.5,40.8]
[1736472111379,3.2078,3220.4,3219.5,40.8]
[1736472111583,3.2078,3220.4,3219.8,0.31058]
[1736472111782,3.2078,3220.4,3219.9,0.4736]
[1736472112482,3.2078,3220.4,3219.9,0.78418]
[1736472112683,3.2078,3220.4,3219.9,0.4736]
[1736472114882,3.2078,3220.4,3219.9,0.78417]
[1736472115080,3.2078,3220.4,3219.9,0.4736]
[1736472115275,3.2078,3220.4,3220.0,0.31056]
[1736472115589,3.5183,3220.8,3220.1,0.31056]
[1736472115890,0.31051,3220.7,3220.1,0.31056]
[1736472116080,3.2078,3220.8,3220.0,3.2078]
[1736472116081,0.31053,3220.5,3220.0,3.2078]
[1736472116282,0.31053,3220.5,3220.1,40.8]
[1736472117074,2.95963278,3220.6,3220.1,40.8]
[1736472117277,0.31054,3220.4,3220.1,40.8]
[1736472117678,0.31053,3220.5,3220.1,40.8]
[1736472117977,3.27015278,3220.6,3220.1,40.8]
[1736472118173,2.95963278,3220.6,3220.1,40.8]
[1736472118378,0.31052,3220.5,3220.1,40.8]
[1736472120487,0.31052,3220.5,3219.9,0.4736]
[1736472120683,2.95963278,3220.6,3219.9,0.4736]
[1736472120886,0.31053,3220.4,3219.9,41.2736]
[1736472121086,0.31054,3220.3,3219.9,41.2736]
[1736472121285,3.2078,3220.4,3219.9,41.2736]
[1736472121586,2.2886,3220.9,3219.7,0.4557]
[1736472121587,3.51838,3220.0,3219.7,0.4557]
[1736472121893,3.2078,3220.0,3219.7,0.4557]
[1736472122692,2.95963278,3220.2,3219.7,0.4557]
[1736472122889,2.95963278,3220.2,3219.7,0.76629]
[1736472123399,3.2078,3220.8,3220.1,3.2078]
[1736472123586,6.16743278,3221.4,3220.7,3.2078]
[1736472123892,6.16743278,3221.4,3221.0,0.31047]
[1736472124093,6.16743278,3221.4,3220.8,0.4356]
[1736472124094,2.95963278,3221.4,3220.8,0.4356]
[1736472124287,2.95963278,3221.4,3220.9,41.11048]
[1736472124894,2.95963278,3221.4,3220.9,40.8]
[1736472125190,0.3105,3220.7,3220.3,3.2078]
[1736472125582,6.16743278,3221.0,3220.2,0.4422]
[1736472125786,6.47791278,3221.0,3220.2,0.4422]
[1736472125987,3.8105,3221.5,3221.1,0.31046]
[1736472125988,0.4373,3221.5,3221.1,0.31046]
[1736472126185,6.47783278,3221.8,3221.3,0.31044]
[1736472126382,0.31041,3221.7,3221.2,0.31045]
[1736472126590,6.47783278,3221.8,3221.2,0.31045]
[1736472126897,6.16743278,3221.8,3221.0,0.9169]
[1736472127097,6.16743278,3221.8,3221.3,0.31044]
[1736472127296,0.31041,3221.7,3221.2,0.31045]
[1736472127486,0.31041,3221.7,3221.0,0.9169]
[1736472127688,6.16743278,3221.8,3221.0,0.9169]
[1736472127889,6.16743278,3221.8,3221.4,0.31043]
[1736472128090,6.16743278,3221.8,3221.0,0.9169]
[1736472128592,0.31041,3221.7,3221.2,0.31045]
[1736472128795,6.16743278,3221.8,3221.0,0.9169]
[1736472128997,6.47783278,3221.8,3221.2,0.31045]
[1736472129489,6.16743278,3221.8,3221.0,0.9169]
[1736472129893,0.31041,3221.7,3221.1,0.31046]
[1736472130089,0.31041,3221.7,3221.0,0.9169]
[1736472130090,6.16743278,3221.8,3221.0,0.9169]
[1736472130790,6.47783278,3221.8,3221.0,0.9169]
[1736472130994,6.47783278,3221.8,3221.2,0.31045]
[1736472131394,6.47783278,3221.8,3221.2,41.11045]
[1736472131789,3.2078,3221.8,3221.3,0.31044]
[1736472131988,3.2078,3221.8,3221.0,0.9169]
[1736472132196,3.2078,3221.8,3221.3,0.31044]
[1736472132391,3.2078,3221.8,3221.4,40.8]
[1736472132590,0.31041,3221.7,3221.4,40.8]
[1736472132998,0.31041,3221.7,3221.2,0.31045]
[1736472133695,0.31041,3221.7,3221.3,40.8]
[1736472133896,0.31041,3221.7,3221.2,0.31045]
[1736472134397,3.2078,3221.8,3221.0,0.9169]
[1736472134593,3.5182,3221.8,3221.0,0.9169]
[1736472134791,3.5182,3221.8,3221.3,0.31044]
[1736472134999,3.2078,3221.8,3221.4,0.31043]
[1736472135297,3.2078,3222.5,3221.9,0.31038]
[1736472135494,0.31035,3222.3,3222.0,0.912]
[1736472135895,0.31035,3222.3,3222.0,0.4701]
[1736472136087,0.31034,3222.4,3222.0,0.4701]
[1736472136291,3.2078,3222.5,3222.0,0.4701]
[1736472136589,3.2078,3222.5,3222.0,0.78048]
[1736472136795,3.51813,3222.5,3222.1,0.465]
[1736472137499,0.31037,3222.1,3222.0,0.4701]
[1736472137693,0.31037,3222.1,3221.7,3.2078]
[1736472137903,0.3104,3221.8,3221.5,0.4419]
[1736472138091,0.31037,3222.2,3221.5,0.4419]
[1736472138295,0.31037,3222.2,3221.7,0.3104]
[1736472138489,0.31037,3222.2,3221.7,3.5182]
[1736472138792,3.51814,3222.4,3221.9,0.31038]
[1736472138995,3.2078,3222.4,3222.1,0.31036]
[1736472139190,3.2078,3222.4,3222.2,0.31036]
[1736472140000,3.2078,3222.4,3222.0,0.31037]
[1736472140199,3.2078,3222.4,3221.7,6.16743278]
[1736472140395,3.2078,3222.4,3222.1,0.31037]
[1736472140599,3.51814,3222.4,3222.0,0.31037]
[1736472140800,3.51814,3222.4,3222.1,41.11037]
[1736472141099,0.31032,3222.7,3222.3,0.31035]
[1736472141496,0.4779,3222.9,3222.4,40.8]
[1736472141896,0.31033,3222.6,3222.4,40.8]
[1736472142299,0.31033,3222.5,3222.4,40.8]
[1736472142492,6.16743278,3222.8,3222.1,3.2078]
[1736472142803,0.4779,3222.9,3221.5,0.4471]
[1736472142804,6.16743278,3222.4,3221.5,0.4471]
[1736472143001,0.3104,3221.8,3221.5,0.4471]
[1736472143202,0.31038,3222.0,3221.6,0.31041]
[1736472143402,0.31037,3222.1,3221.7,0.3104]
[1736472143795,0.4558,3222.2,3221.5,0.4471]
[1736472144101,0.76616,3222.2,3221.8,0.31039]
[1736472144604,0.4558,3222.2,3221.5,0.4471]
[1736472144805,0.31038,3222.0,3221.6,0.31041]
[1736472145300,0.3104,3221.8,3221.5,0.4471]
[1736472145503,2.95963278,3222.0,3221.2,3.2078]
[1736472145704,2.95963278,3222.0,3220.9,0.4773]
[1736472145705,0.4467,3221.9,3220.9,0.4773]
[1736472145909,0.3104,3221.8,3221.4,0.31043]
[1736472146097,3.2078,3222.1,3221.2,3.2078]
[1736472146497,0.3104,3221.8,3221.4,0.31043]
[1736472146692,0.3104,3221.8,3221.2,3.2078]
[1736472147001,3.2078,3222.1,3221.5,0.31043]
[1736472147002,0.31039,3221.9,3221.5,0.31043]
[1736472147300,2.95963278,3222.0,3221.2,3.2078]
[1736472147505,2.95963278,3222.0,3220.8,1.8612]
[1736472147506,2.95963278,3222.0,3221.1,0.31046]
[1736472147701,0.31045,3221.3,3221.0,41.2773]
[1736472147900,0.31045,3221.3,3221.0,40.8]
[1736472148399,0.31046,3221.2,3221.0,40.8]
[1736472148602,0.31046,3221.1,3220.8,3.668]
[1736472149099,0.4588,3221.5,3220.8,44.468]
[1736472149404,0.31046,3221.2,3220.8,44.468]
[1736472149705,0.31046,3221.1,3220.8,44.77849]
[1736472149909,0.31047,3221.0,3220.8,44.468]
[1736472150403,0.31046,3221.2,3220.8,44.77849]
[1736472151006,0.31047,3221.1,3220.8,44.77849]
[1736472151705,0.31047,3221.1,3220.8,44.468]
[1736472151906,0.31048,3221.0,3220.8,44.468]
[1736472152207,0.31048,3221.0,3220.8,44.0078]
[1736472152706,0.31046,3221.2,3220.8,44.31829]
[1736472153406,0.31045,3221.3,3220.9,0.31048]
[1736472153601,0.31043,3221.4,3220.8,44.31829]
[1736472153807,0.31045,3221.3,3220.8,44.31829]
[1736472155100,0.4588,3221.5,3220.8,44.0078]
[1736472155307,0.31044,3221.4,3220.9,0.31048]
[1736472155610,0.31045,3221.3,3220.8,44.31829]
[1736472155798,0.31046,3221.2,3220.8,44.0078]
[1736472155998,0.4588,3221.5,3220.8,44.0078]
[1736472156208,0.31044,3221.4,3220.8,44.0078]
[1736472156510,0.31044,3221.4,3220.9,0.31048]
[1736472156809,0.76923,3221.5,3221.0,0.31047]
[1736472157209,0.76923,3221.5,3220.9,0.4747]
[1736472157210,0.4588,3221.5,3220.9,0.4747]
[1736472157509,0.31044,3221.4,3221.0,0.31047]
[1736472157708,0.31044,3221.4,3220.9,0.4747]
[1736472157909,0.31044,3221.4,3220.9,0.78517]
[1736472158302,0.4588,3221.5,3220.9,0.4747]
[1736472158503,0.31046,3221.2,3220.9,0.4747]
[1736472158699,0.31046,3221.1,3220.9,0.4747]
[1736472158901,0.4588,3221.5,3220.9,0.4747]
[1736472159110,0.31046,3221.2,3220.9,0.4747]
[1736472159503,3.2078,3221.3,3220.8,44.0078]
[1736472159808,0.31045,3221.2,3220.8,44.31829]
[1736472160007,0.4588,3221.5,3220.8,44.0078]
[1736472160212,0.31045,3221.3,3220.9,0.74728]
[1736472160813,0.4588,3221.5,3220.9,0.4368]
[1736472161113,0.31045,3221.3,3220.9,0.4368]
[1736472161406,0.4588,3221.5,3220.9,0.4368]
[1736472161605,0.76923,3221.5,3221.1,0.31046]
[1736472161809,0.76923,3221.5,3221.0,0.31047]
[1736472162710,0.31044,3221.4,3221.0,0.31047]
[1736472162903,0.4588,3221.5,3220.9,0.4368]
[1736472163404,0.76923,3221.5,3221.1,0.31046]
[1736472164315,0.31044,3221.4,3221.1,0.31046]
[1736472164612,0.76923,3221.5,3221.1,0.31046]
[1736472166515,0.31044,3221.4,3221.1,0.31046]
[1736472166713,0.76923,3221.5,3221.1,0.31046]
[1736472166914,0.31044,3221.4,3221.1,0.31046]
[1736472169417,3.51821,3221.7,3221.4,0.31043]
[1736472169618,3.2078,3221.7,3221.5,0.9427]
[1736472169819,3.2078,3221.7,3221.5,1.25312]
[1736472170221,3.3659,3222.2,3221.5,1.25312]
[1736472170222,0.31039,3221.9,3221.5,1.25312]
[1736472170418,0.31039,3221.9,3221.6,0.31041]
[1736472170619,0.31038,3222.0,3221.6,0.31041]
[1736472170820,3.51817,3222.1,3221.7,0.3104]
[1736472171711,3.2078,3222.1,3221.7,0.3104]
[1736472171911,3.2078,3222.1,3222.0,0.31038]
[1736472172111,3.2078,3222.1,3221.9,0.31039]
[1736472172710,3.2078,3222.1,3221.5,0.9427]
[1736472173117,3.2078,3222.1,3221.9,0.31038]
[1736472173723,3.2078,3222.1,3221.6,40.8]
[1736472173921,3.2078,3222.1,3221.8,0.31039]
[1736472175231,0.31036,3222.2,3221.8,0.31039]
[1736472175440,0.31036,3222.2,3221.9,0.31039]
[1736472176325,0.31036,3222.2,3221.8,0.31039]
[1736472176726,0.31036,3222.2,3221.9,0.31039]
[1736472177525,3.2078,3222.4,3221.5,0.9427]
[1736472177526,2.44466232,3222.0,3221.5,0.9427]
[1736472177726,5.65246232,3222.0,3221.5,0.9427]
[1736472177929,0.3104,3221.8,3221.5,0.9427]
[1736472178631,0.3104,3221.8,3221.4,0.31043]
[1736472179523,5.65246232,3222.0,3221.2,44.4443]
[1736472179730,0.31042,3221.6,3221.2,44.4443]
[1736472179928,2.44466232,3221.7,3221.2,44.4443]
[1736472180129,0.31043,3221.5,3221.2,44.4443]
[1736472180435,2.44466232,3221.7,3221.2,44.4443]
[1736472180625,0.31044,3221.4,3221.2,3.2078]
[1736472181228,2.44466232,3221.7,3221.2,3.2078]
[1736472181430,0.31042,3221.6,3221.2,3.2078]
[1736472181830,0.31044,3221.4,3221.2,3.2078]
[1736472182438,0.31043,3221.5,3221.0,41.11047]
[1736472182833,0.31046,3221.2,3221.0,40.8]
[1736472183135,0.31045,3221.3,3221.0,40.8]
[1736472183326,0.76834,3221.4,3221.0,40.8]
[1736472183530,3.2078,3221.6,3221.2,0.31045]
[1736472183732,3.2078,3221.6,3221.3,0.9144]
[1736472184132,0.76829,3221.9,3221.4,0.31043]
[1736472184535,0.4579,3221.9,3221.4,0.31043]
[1736472184733,0.3104,3221.8,3221.4,0.31043]
[1736472185140,6.10846232,3222.0,3221.3,1.3643]
[1736472185342,3.2078,3222.0,3221.3,3.80896232]
[1736472185633,3.2078,3222.0,3221.9,0.31039]
[1736472186936,3.2078,3222.4,3221.6,5.65246232]
[1736472187131,3.2078,3222.4,3221.6,3.2078]
[1736472187336,0.31035,3222.3,3221.9,0.31039]
[1736472187531,3.51814,3222.4,3222.0,0.4719]
[1736472187844,3.51814,3222.4,3222.0,0.9071]
[1736472188740,3.2078,3222.4,3222.0,0.9071]
[1736472189129,2.44466232,3222.3,3221.6,3.51821]
[1736472189338,0.31037,3222.1,3221.6,3.51821]
[1736472191033,0.472,3222.2,3221.7,0.31041]
[1736472191335,0.31037,3222.1,3221.6,3.2078]
[1736472191536,0.472,3222.2,3221.6,3.2078]
[1736472191537,0.31036,3222.2,3221.8,0.31039]
[1736472191738,0.31036,3222.2,3221.7,0.3104]
[1736472191938,0.31037,3222.1,3221.7,0.3104]
[1736472192444,0.31036,3222.2,3221.7,0.3104]
[1736472192638,2.91626232,3222.3,3221.6,3.2078]
[1736472192939,3.2078,3223.3,3222.2,3.2078]
[1736472193139,3.2078,3223.3,3223.2,0.31026]
[1736472193343,3.2078,3223.8,3223.2,40.8]
[1736472193539,3.2078,3223.8,3223.6,0.31022]
[1736472193838,3.2078,3223.8,3223.5,0.31023]
[1736472194142,3.2078,3223.8,3223.7,0.31021]
[1736472194539,3.2078,3223.8,3223.6,0.31022]
[1736472195141,3.2078,3223.8,3223.7,0.31021]
[1736472196047,3.2078,3223.8,3223.6,0.31022]
[1736472196242,3.2078,3223.8,3223.7,0.31021]
[1736472197249,3.2078,3223.8,3223.3,0.9182]
[1736472197443,3.2078,3223.8,3223.6,0.31022]
[1736472198241,3.2078,3223.8,3223.3,0.444]
[1736472198444,3.2078,3223.8,3223.1,3.2078]
[1736472198651,0.31025,3223.4,3223.0,0.31028]
[1736472198852,0.4356,3223.7,3223.2,0.31026]
[1736472198853,0.31023,3223.6,3223.2,0.31026]
[1736472199648,0.4356,3223.7,3223.2,0.31026]
[1736472199947,0.74582,3223.7,3223.2,0.31026]
[1736472200153,0.4356,3223.7,3223.2,0.31026]
[1736472200753,0.4356,3223.7,3223.3,0.31025]
[1736472201649,0.74581,3223.7,3223.2,0.31026]
[1736472202256,3.2078,3223.4,3222.8,0.4765]
[1736472202458,0.31027,3223.2,3222.8,0.4765]
[1736472202751,0.31027,3223.1,3222.6,3.51812]
[1736472202955,0.4596,3223.0,3222.6,3.51812]
[1736472203349,0.4596,3223.0,3222.6,3.2078]
[1736472203551,3.5181,3222.9,3222.4,0.31034]
[1736472203751,3.2078,3222.9,3222.3,0.4699]
[1736472204051,0.31032,3222.6,3222.1,3.51817]
[1736472204653,0.31034,3222.4,3221.9,0.31038]
[1736472204850,3.2078,3222.1,3221.7,0.4699]
[1736472205053,3.2078,3222.1,3221.1,3.6745]
[1736472205656,0.31039,3222.0,3221.2,40.8]
[1736472205957,0.31039,3222.0,3221.5,0.31042]
[1736472206653,0.31039,3222.0,3221.4,0.31043]
[1736472206958,0.31039,3222.0,3221.5,0.31042]
[1736472208761,0.31038,3222.0,3221.4,0.31043]
[1736472209060,3.2078,3222.1,3221.2,40.8]
[1736472209261,5.65246232,3222.1,3221.3,0.31044]
[1736472209554,5.65246232,3222.1,3221.2,40.8]
[1736472209555,2.44466232,3221.8,3221.2,40.8]
[1736472209755,0.31047,3221.1,3220.5,0.4364]
[1736472209959,3.6468,3221.0,3220.6,0.31051]
[1736472210355,3.6468,3221.0,3220.7,40.8]
[1736472210957,3.6468,3221.0,3220.6,0.31051]
[1736472211157,3.6468,3221.0,3220.5,0.4364]
[1736472211357,3.2078,3221.0,3220.9,0.31048]
[1736472211963,3.2078,3221.0,3220.9,41.11048]
[1736472212965,3.2078,3221.0,3220.9,40.8]
[1736472213265,3.2078,3221.0,3220.9,41.11048]
[1736472216262,3.2078,3221.0,3220.9,40.8]
[1736472216462,3.2078,3221.0,3220.9,41.11048]
[1736472218467,3.2078,3221.6,3221.4,0.31043]
[1736472218669,3.2078,3221.6,3221.2,3.2078]
[1736472218866,3.2078,3221.6,3221.4,0.31043]
[1736472219364,3.2078,3221.6,3221.5,0.31043]
[1736472219973,0.31038,3222.0,3221.5,0.31043]
[1736472220874,0.31039,3221.9,3221.5,0.31043]
[1736472221169,0.31043,3221.5,3221.0,1.24167]
[1736472221369,3.2078,3221.7,3221.0,1.24167]
[1736472221370,3.51821,3221.7,3221.1,0.31046]
[1736472221570,0.4336,3221.6,3221.1,0.31046]
[1736472221770,0.74402,3221.6,3221.1,0.31046]
[1736472222768,0.74402,3221.6,3221.0,0.9312]
[1736472222964,0.4336,3221.6,3221.3,0.31044]
[1736472223169,0.4336,3221.6,3221.2,0.31045]
[1736472223768,0.4336,3221.6,3221.3,0.31044]
[1736472223968,3.2078,3221.7,3221.6,0.31042]
[1736472224169,3.2078,3221.7,3221.5,0.31042]
[1736472224472,0.31042,3221.6,3221.1,0.31046]
[1736472224678,1.22122,3221.6,3221.1,0.31046]
[1736472224974,0.31043,3221.5,3221.1,0.31046]
[1736472225671,0.9108,3221.6,3221.0,4.139]
[1736472225873,0.4349,3221.6,3221.0,4.139]
[1736472226072,3.2078,3221.7,3221.0,6.58366232]
[1736472226275,3.2078,3221.7,3221.5,0.31042]
[1736472226771,3.2078,3221.7,3221.0,6.58366232]
[1736472226978,0.31042,3221.6,3221.2,0.31045]
[1736472227180,3.2078,3221.7,3221.2,0.31045]
[1736472227367,3.2078,3221.7,3221.0,4.139]
[1736472227571,3.2078,3221.7,3221.5,0.31042]
[1736472229078,0.4727,3222.0,3221.0,6.58366232]
[1736472229277,3.51817,3222.1,3221.7,0.3104]
[1736472229482,3.2078,3222.1,3221.4,3.2078]
[1736472229775,0.31038,3222.0,3221.6,0.31041]
[1736472229979,5.65246232,3222.1,3221.0,0.9312]
[1736472230179,0.3104,3221.8,3221.4,0.31043]
[1736472230377,0.4636,3221.7,3221.4,0.31043]
[1736472231179,0.4636,3221.7,3221.1,0.4614]
[1736472231381,0.77401,3221.7,3221.3,0.31044]
[1736472232381,0.4636,3221.7,3221.3,0.31044]
[1736472232883,0.4636,3221.7,3221.4,0.31043]
[1736472233582,0.31039,3221.9,3221.5,0.31042]
[1736472233778,3.51817,3222.1,3221.6,0.31041]
[1736472234281,0.31038,3222.0,3221.6,0.31041]
[1736472235484,0.31041,3221.7,3221.3,3.51824]
[1736472235783,0.31041,3221.7,3221.3,3.2078]
[1736472236082,2.44466232,3221.8,3221.3,3.2078]
[1736472236286,0.3104,3221.8,3221.4,0.31043]
[1736472236485,0.31041,3221.7,3221.3,3.51824]
[1736472236987,0.3104,3221.8,3221.3,3.51824]
[1736472237490,7.04046232,3222.1,3221.3,3.51824]